bitfinex/quotes_BTCUSD_20250802
["timestamp","ask_amount","ask_price","bid_price","bid_amount"]
[1754102670321,1.03136489,113850.0,113840.0,0.03227]
[1754102671521,1.08419489,113850.0,113840.0,0.03227]
[1754102671742,1.03136489,113850.0,113840.0,0.03227]
[1754102677101,0.42125263,113850.0,113840.0,0.03227]
[1754102680097,1.03136489,113850.0,113840.0,0.03227]
[1754102681326,1.03136489,113850.0,113840.0,0.03027]
[1754102682622,0.42125263,113850.0,113840.0,0.03027]
[1754102682905,1.03136489,113850.0,113840.0,0.03027]
[1754102683134,1.03136489,113850.0,113840.0,0.02728]
[1754102684622,1.03136489,113850.0,113840.0,0.03044]
[1754102693209,0.42125263,113850.0,113840.0,0.03044]
[1754102693412,1.03136489,113850.0,113840.0,0.03044]
[1754102697477,0.42125263,113850.0,113840.0,0.03044]
[1754102699379,0.42125263,113850.0,113840.0,0.64055226]
[1754102699567,0.42125263,113850.0,113840.0,0.64271226]
[1754102699972,0.42125263,113850.0,113840.0,0.0326]
[1754102700138,0.42125263,113850.0,113840.0,0.64271226]
[1754102701481,0.41951263,113850.0,113840.0,0.64271226]
[1754102706252,0.41951263,113850.0,113840.0,0.0326]
[1754102706460,0.41951263,113850.0,113840.0,0.64271226]
[1754102706866,0.41951263,113850.0,113840.0,0.0326]
[1754102708425,0.42121263,113850.0,113840.0,0.0326]
[1754102713109,0.20629218,113850.0,113830.0,0.72369226]
[1754102713414,0.17568517,113840.0,113830.0,0.72369226]
[1754102713627,0.17568517,113840.0,113830.0,0.72585226]
[1754102714607,0.17568517,113840.0,113830.0,0.72785226]
[1754102715331,0.17568517,113840.0,113830.0,0.75453226]
[1754102715699,0.23675718,113840.0,113830.0,0.75453226]
[1754102715937,0.17568517,113840.0,113830.0,0.75553226]
[1754102723841,0.43179492,113850.0,113830.0,0.75553226]
[1754102724059,0.43503492,113850.0,113840.0,0.61011226]
[1754102724274,0.43720492,113850.0,113840.0,0.61011226]
[1754102725453,0.43720492,113850.0,113840.0,0.63619226]
[1754102727525,0.43720492,113850.0,113840.0,0.63823226]
[1754102732698,0.43716492,113850.0,113840.0,0.63823226]
[1754102735592,0.22937274,113850.0,113840.0,0.63823226]
[1754102735834,0.36257274,113850.0,113840.0,0.63823226]
[1754102736238,0.33616974,113850.0,113840.0,0.63823226]
[1754102740038,0.33616974,113850.0,113840.0,0.77143226]
[1754102741471,0.75094808,113860.0,113840.0,0.77143226]
[1754102741669,0.07351106,113860.0,113850.0,1.24948452]
[1754102741908,0.04710706,113860.0,113850.0,1.38472452]
[1754102742132,0.04710706,113860.0,113850.0,0.77461226]
[1754102743079,0.04710706,113860.0,113850.0,0.77661226]
[1754102743324,0.04810706,113860.0,113850.0,0.77661226]
[1754102743589,0.04710706,113860.0,113850.0,0.77661226]
[1754102744114,0.04710706,113860.0,113850.0,0.86081215]
[1754102744312,0.04710706,113860.0,113850.0,0.77661226]
[1754102745062,0.04710706,113860.0,113850.0,0.77761226]
[1754102750472,0.011053,113860.0,113850.0,0.77761226]
[1754102751189,0.04717729,113860.0,113850.0,0.77761226]
[1754102751410,0.011053,113860.0,113850.0,0.77761226]
[1754102751720,0.011053,113860.0,113850.0,0.1675]
[1754102751913,0.86310567,113860.0,113850.0,0.003]
[1754102752133,0.38615341,113860.0,113850.0,0.003]
[1754102752352,0.99626567,113860.0,113850.0,0.003]
[1754102753635,0.86310567,113860.0,113850.0,0.003]
[1754102753844,0.99626567,113860.0,113850.0,0.003]
[1754102754728,0.86310567,113860.0,113850.0,0.003]
[1754102754935,0.99626567,113860.0,113850.0,0.003]
[1754102756224,0.8983007,113860.0,113850.0,0.003]
[1754102756529,1.0314607,113860.0,113850.0,0.003]
[1754102756883,0.8983007,113860.0,113850.0,0.003]
[1754102757091,1.0314607,113860.0,113850.0,0.003]
[1754102757696,0.8983007,113860.0,113850.0,0.003]
[1754102758141,1.26566059,113860.0,113850.0,0.003]
[1754102758325,0.65554833,113860.0,113850.0,0.003]
[1754102758583,1.26566059,113860.0,113850.0,0.003]
[1754102758911,1.29206259,113860.0,113850.0,0.002]
[1754102759170,1.29206259,113860.0,113840.0,0.13316]
[1754102759171,0.17566974,113850.0,113840.0,0.13316]
[1754102759407,0.26194963,113850.0,113840.0,0.13316]
[1754102759617,0.29010963,113850.0,113840.0,0.13316]
[1754102760430,0.29010963,113850.0,113840.0,0.15963]
[1754102760871,0.28707963,113850.0,113840.0,0.15963]
[1754102761498,0.28707963,113850.0,113840.0,0.16063]
[1754102761718,0.28707963,113850.0,113840.0,0.16263]
[1754102762160,0.29010963,113850.0,113840.0,0.16263]
[1754102764150,0.52587222,113860.0,113840.0,0.16263]
[1754102764363,0.52587222,113860.0,113840.0,0.77583226]
[1754102764364,0.17566974,113850.0,113840.0,0.77583226]
[1754102764974,0.17566974,113850.0,113840.0,0.77483226]
[1754102766298,0.17566974,113850.0,113840.0,0.77583226]
[1754102767015,0.17566974,113850.0,113840.0,0.77383226]
[1754102768604,0.17566974,113850.0,113840.0,0.77583226]
[1754102782708,0.03623161,113860.0,113840.0,1.47014441]
[1754102782908,0.03623161,113860.0,113850.0,1.24770452]
[1754102783117,0.49342589,113870.0,113850.0,1.24978452]
[1754102783321,0.4934738,113870.0,113860.0,0.61011226]
[1754102783533,0.5295759,113870.0,113860.0,0.63967226]
[1754102784354,0.5305759,113870.0,113860.0,0.63967226]
[1754102784894,0.5315759,113870.0,113860.0,0.63967226]
[1754102785657,0.5315759,113870.0,113860.0,0.77283226]
[1754102785868,0.0639454,113870.0,113860.0,0.77283226]
[1754102785989,0.0639454,113870.0,113860.0,0.85703215]
[1754102786208,0.1981054,113870.0,113860.0,0.85703215]
[1754102786430,0.1981054,113870.0,113860.0,0.77283226]
[1754102787138,0.1961054,113870.0,113860.0,0.77283226]
[1754102787764,0.0629454,113870.0,113860.0,0.77283226]
[1754102788528,0.0619454,113870.0,113860.0,0.77283226]
[1754102791029,0.03615001,113870.0,113860.0,0.77283226]
[1754102791249,4.791e-05,113870.0,113860.0,0.85703215]
[1754102792588,4.791e-05,113870.0,113860.0,0.88342815]
[1754102794463,4.791e-05,113870.0,113860.0,0.88442815]
[1754102795485,4.791e-05,113870.0,113860.0,0.88642815]
[1754102800013,4.791e-05,113870.0,113860.0,0.97062804]
[1754102802211,4.791e-05,113870.0,113860.0,0.36051578]
[1754102802428,4.791e-05,113870.0,113860.0,0.88642815]
[1754102802658,4.791e-05,113870.0,113860.0,0.27631589]
[1754102802884,4.791e-05,113870.0,113860.0,0.88642815]
[1754102803086,0.00201791,113870.0,113860.0,0.029396]
[1754102803322,1.22949239,113870.0,113860.0,0.003]
[1754102803577,1.31369228,113870.0,113860.0,0.003]
[1754102803795,0.54806679,113870.0,113860.0,0.61311226]
[1754102804037,4.791e-05,113870.0,113860.0,0.64785226]
[1754102804265,0.20806679,113870.0,113860.0,0.003]
[1754102804485,0.20933679,113870.0,113860.0,0.003]
[1754102804978,0.81944905,113870.0,113860.0,0.003]
[1754102805889,0.20933679,113870.0,113860.0,0.003]
[1754102806545,0.20933679,113870.0,113860.0,0.002]
[1754102807185,0.17565431,113860.0,113850.0,0.13328]
[1754102807420,0.24653342,113860.0,113850.0,0.13328]
[1754102807628,0.17566974,113850.0,113840.0,0.54639136]
[1754102807889,0.20804974,113850.0,113830.0,0.03277]
[1754102808139,0.34969,113860.0,113840.0,0.13332]
[1754102808365,0.68842,113860.0,113850.0,0.001]
[1754102808573,0.68842,113860.0,113850.0,0.003]
[1754102809733,0.68842,113860.0,113850.0,0.002]
[1754102810473,0.68842,113860.0,113840.0,0.67971136]
[1754102810676,0.17566974,113850.0,113840.0,0.67971136]
[1754102810898,0.17566974,113850.0,113840.0,0.68168136]
[1754102811297,0.21697882,113850.0,113840.0,0.68168136]
[1754102811973,0.21697882,113850.0,113840.0,0.17006]
[1754102812200,0.17566974,113850.0,113840.0,0.17006]
[1754102812354,0.34,113860.0,113840.0,1.28150261]
[1754102812589,0.34,113860.0,113850.0,0.51362136]
[1754102812865,0.34,113860.0,113850.0,0.54836136]
[1754102814345,0.51565431,113860.0,113850.0,0.54836136]
[1754102815222,0.51565431,113860.0,113850.0,0.03474]
[1754102818459,0.51565431,113860.0,113850.0,0.54836136]
[1754102820714,0.17565431,113860.0,113850.0,0.54836136]
[1754102821999,0.33165178,113870.0,113860.0,0.34]
[1754102822000,0.01379096,113870.0,113860.0,0.34]
[1754102822243,4.791e-05,113870.0,113860.0,1.05555889]
[1754102824143,4.791e-05,113870.0,113860.0,1.13975878]
[1754102824372,0.18438884,113890.0,113860.0,1.13975878]
[1754102824604,0.18443676,113890.0,113870.0,0.51362136]
[1754102824846,0.18443676,113890.0,113880.0,0.13573]
[1754102825074,0.18443676,113890.0,113880.0,0.15059587]
[1754102825306,0.18443676,113890.0,113880.0,0.18477587]
[1754102825528,4.792e-05,113890.0,113880.0,0.69839723]
[1754102825965,0.17565596,113890.0,113880.0,0.69839723]
[1754102826616,0.17565596,113890.0,113880.0,0.18477587]
[1754102826849,0.17565596,113890.0,113880.0,0.68353136]
[1754102827545,0.21309006,113890.0,113880.0,0.68353136]
[1754102827757,0.21209006,113890.0,113880.0,0.68353136]
[1754102828191,0.21309006,113890.0,113880.0,0.68353136]
[1754102828394,0.21409006,113890.0,113880.0,0.68353136]
[1754102829257,0.17765596,113890.0,113880.0,0.7518845]
[1754102829480,0.00204792,113890.0,113880.0,0.7518845]
[1754102831433,0.17765596,113890.0,113880.0,0.7518845]
[1754102831853,0.21255331,113890.0,113880.0,0.7518845]
[1754102833339,0.00204792,113890.0,113880.0,0.7518845]
[1754102835535,0.17765596,113890.0,113880.0,0.23826314]
[1754102835749,0.17765596,113890.0,113880.0,0.16991]
[1754102835965,0.21385751,113890.0,113880.0,0.16991]
[1754102836895,0.1756367,113880.0,113870.0,0.16508]
[1754102837108,0.1756367,113880.0,113870.0,0.13388]
[1754102837317,0.17563888,113870.0,113860.0,0.03418]
[1754102837518,0.1756367,113880.0,113860.0,0.7384315]
[1754102837717,0.1756367,113880.0,113860.0,0.7042515]
[1754102837956,0.1756367,113880.0,113870.0,0.03418]
[1754102838295,0.1756367,113880.0,113870.0,0.03615]
[1754102839062,0.1756367,113880.0,113870.0,0.03815]
[1754102840400,0.56063791,113890.0,113870.0,0.11219315]
[1754102840600,0.56063791,113890.0,113880.0,0.03418]
[1754102840764,0.56063791,113890.0,113880.0,0.03615]
[1754102841592,0.56163791,113890.0,113880.0,0.03418]
[1754102841811,0.17562346,113880.0,113870.0,0.07702315]
[1754102841997,0.17562346,113880.0,113870.0,0.11019315]
[1754102844062,0.17562346,113880.0,113870.0,0.11119315]
[1754102844277,0.17562346,113880.0,113870.0,0.11219315]
[1754102844707,0.17562346,113880.0,113870.0,0.03815]
[1754102850965,0.17562346,113880.0,113870.0,0.17207]
[1754102854429,0.51562346,113880.0,113870.0,0.13592]
[1754102854662,1.03560482,113880.0,113870.0,0.002]
[1754102855281,1.03560482,113880.0,113870.0,0.001]
[1754102855490,0.51563888,113870.0,113860.0,0.134]
[1754102855691,0.17565431,113860.0,113850.0,0.17111]
[1754102856075,0.17565431,113860.0,113850.0,0.17313]
[1754102857273,0.17565431,113860.0,113850.0,0.17513]
[1754102858780,0.17565431,113860.0,113850.0,0.17613]
[1754102863670,0.17565431,113860.0,113850.0,0.68975136]
[1754102865848,0.3555072,113880.0,113850.0,0.77395125]
[1754102865849,0.3332272,113880.0,113850.0,0.77395125]
[1754102866003,0.3332272,113880.0,113870.0,0.51362136]
[1754102866205,0.1991472,113880.0,113870.0,0.17317]
[1754102866414,0.5391472,113880.0,113870.0,0.17317]
[1754102867115,0.5381472,113880.0,113870.0,0.17317]
[1754102867309,0.5391472,113880.0,113870.0,0.17317]
[1754102868837,0.17565431,113860.0,113850.0,0.59782125]
[1754102869039,0.18443702,113860.0,113850.0,0.13618]
[1754102869515,0.18443702,113860.0,113850.0,0.17325]
[1754102869744,0.18443702,113860.0,113850.0,0.68687136]
[1754102870153,0.18443702,113860.0,113850.0,0.68787136]
[1754102870734,0.18443702,113860.0,113850.0,0.68987136]
[1754102872595,0.30981202,113870.0,113850.0,0.7588585]
[1754102872778,0.30981202,113870.0,113850.0,0.7217885]
[1754102872992,0.17565202,113870.0,113860.0,0.03707]
[1754102873284,0.17565202,113870.0,113860.0,0.03909]
[1754102876218,0.17565202,113870.0,113860.0,0.04009]
[1754102877516,0.17565202,113870.0,113860.0,0.04109]
[1754102881466,0.51565202,113870.0,113860.0,0.03907]
[1754102884031,0.51565202,113870.0,113860.0,0.04104]
[1754102888144,0.51565202,113870.0,113860.0,0.03907]
[1754102888409,1.25306327,113870.0,113860.0,0.002]
[1754102888538,1.30589327,113870.0,113860.0,0.002]
[1754102888761,1.31963642,113870.0,113860.0,0.002]
[1754102888966,1.31963642,113870.0,113860.0,0.001]
[1754102889133,0.17566974,113850.0,113840.0,0.0357]
[1754102889333,0.51566974,113850.0,113840.0,0.03767]
[1754102890390,0.33593711,113870.0,113840.0,0.55133927]
[1754102890596,0.34,113860.0,113850.0,0.68095136]
[1754102890808,0.34,113860.0,113850.0,0.68605136]
[1754102891006,0.34,113860.0,113850.0,0.17243]
[1754102891007,0.51565431,113860.0,113850.0,0.17243]
[1754102893666,0.51665431,113860.0,113850.0,0.17243]
[1754102899763,0.341,113860.0,113850.0,0.68605136]
[1754102899977,0.51665431,113860.0,113850.0,0.68605136]
[1754102900656,0.51665431,113860.0,113850.0,0.17243]
[1754102901766,0.341,113860.0,113850.0,0.17243]
[1754102901982,0.001,113860.0,113850.0,0.68605136]
[1754102903747,0.1215669,113870.0,113850.0,0.24945992]
[1754102903918,0.29723428,113870.0,113850.0,0.21375992]
[1754102904234,0.64601622,113870.0,113860.0,0.0357]
[1754102905360,0.64801622,113870.0,113860.0,0.0357]
[1754102905573,0.64601622,113870.0,113860.0,0.0357]
[1754102906035,0.64801622,113870.0,113860.0,0.0357]
[1754102906345,0.64901622,113870.0,113860.0,0.0357]
[1754102906852,0.64801622,113870.0,113860.0,0.0357]
[1754102907163,0.64901622,113870.0,113860.0,0.0357]
[1754102916313,0.52744932,113870.0,113860.0,0.0357]
[1754102916509,0.66244932,113870.0,113860.0,0.0357]
[1754102917488,0.52744932,113870.0,113860.0,0.0357]
[1754102917761,0.66244932,113870.0,113860.0,0.0357]
[1754102922559,0.17566974,113850.0,113840.0,0.00314791]
[1754102922808,1.0292911,113850.0,113840.0,4.791e-05]
[1754102923041,1.1642111,113850.0,113840.0,4.791e-05]
[1754102923269,0.65058974,113850.0,113840.0,0.03328791]
[1754102923489,0.65058974,113850.0,113840.0,0.03638791]
[1754102923931,0.65058974,113850.0,113840.0,0.03838791]
[1754102925930,0.13492,113850.0,113840.0,0.03838791]
[1754102926132,0.31058974,113850.0,113840.0,0.04034791]
[1754102928562,0.67319312,113870.0,113840.0,0.64036522]
[1754102928775,0.17565466,113860.0,113850.0,0.03634]
[1754102929214,0.17565466,113860.0,113850.0,0.03324]
[1754102929426,0.17566974,113850.0,113840.0,0.17338791]
[1754102929626,0.17566974,113850.0,113840.0,0.17534791]
[1754102929764,0.17566974,113850.0,113840.0,0.17434791]
[1754102930598,0.17566974,113850.0,113840.0,0.04034791]
[1754102930801,0.17565466,113860.0,113840.0,0.17438791]
[1754102931005,0.31065466,113860.0,113850.0,0.03634]
[1754102931265,0.31065466,113860.0,113850.0,0.0383]
[1754102937156,0.17565466,113860.0,113850.0,0.0383]
[1754102946079,0.17565466,113860.0,113850.0,0.03324]
[1754102946297,0.17566974,113850.0,113840.0,0.16947791]
[1754102946523,0.51566974,113850.0,113840.0,0.03411791]
[1754102947587,0.51566974,113850.0,113840.0,0.03511791]
[1754102947812,0.51566974,113850.0,113840.0,0.03611791]
[1754102948733,0.51566974,113850.0,113840.0,0.03811791]
[1754102965988,0.51566974,113850.0,113840.0,0.00204791]
[1754102966204,0.52070974,113850.0,113840.0,0.00204791]
[1754102966843,0.51566974,113850.0,113840.0,0.00204791]
[1754102967060,0.51566974,113850.0,113840.0,0.03294791]
[1754102967492,0.51566974,113850.0,113840.0,0.03194791]
[1754102969446,0.65166974,113850.0,113840.0,0.03695791]
[1754102969681,0.51566974,113850.0,113840.0,0.03695791]
[1754102975250,0.34,113850.0,113840.0,0.03695791]
[1754102975444,0.34,113850.0,113840.0,0.0542457]
[1754102975654,0.34,113850.0,113840.0,0.03695791]
[1754102976476,0.51566974,113850.0,113840.0,0.03695791]
[1754102977321,0.52070974,113850.0,113840.0,4.791e-05]
[1754102977557,0.51566974,113850.0,113840.0,4.791e-05]
[1754102977772,0.51566974,113850.0,113840.0,0.03194791]
[1754102978408,0.51566974,113850.0,113840.0,0.03497791]
[1754102985765,0.51566974,113850.0,113840.0,0.03695791]
[1754102987249,0.51566974,113850.0,113840.0,0.03497791]
[1754102993039,0.51566974,113850.0,113840.0,0.03695791]
[1754102995449,0.65162974,113850.0,113840.0,0.03695791]
[1754102997277,0.51566974,113850.0,113840.0,0.03695791]
[1754102997845,0.51566974,113850.0,113840.0,0.03497791]
[1754102999010,0.51566974,113850.0,113840.0,4.791e-05]
[1754102999223,0.73967963,113850.0,113840.0,4.791e-05]
[1754103002450,0.75342481,113850.0,113840.0,4.791e-05]
[1754103003134,0.73967963,113850.0,113840.0,4.791e-05]
[1754103004006,0.54787435,113850.0,113840.0,4.791e-05]
[1754103004247,0.39967963,113850.0,113840.0,4.791e-05]
[1754103004839,0.39578963,113850.0,113840.0,4.791e-05]
[1754103005044,0.31158974,113850.0,113840.0,0.03631791]
[1754103006652,0.17566974,113850.0,113840.0,0.03631791]
[1754103006901,0.31162974,113850.0,113840.0,0.03631791]
[1754103007215,0.37410242,113850.0,113840.0,0.03631791]
[1754103008279,0.37924242,113850.0,113840.0,4.791e-05]
[1754103009341,0.61344231,113850.0,113840.0,4.791e-05]
[1754103009561,0.95344231,113850.0,113840.0,4.791e-05]
[1754103013347,0.95444231,113850.0,113840.0,4.791e-05]
[1754103013567,0.90571387,113850.0,113840.0,4.791e-05]
[1754103014403,0.90671387,113850.0,113840.0,4.791e-05]
[1754103014877,0.93312087,113850.0,113840.0,4.791e-05]
[1754103015741,0.91937663,113850.0,113840.0,4.791e-05]
[1754103018751,0.93312263,113850.0,113840.0,4.791e-05]
[1754103020019,0.92798263,113850.0,113840.0,4.791e-05]
[1754103022832,0.92798263,113850.0,113840.0,0.03128791]
[1754103024957,0.92798263,113850.0,113840.0,0.03427791]
[1754103027262,0.92766263,113850.0,113840.0,0.03427791]
[1754103030486,0.92758263,113850.0,113840.0,0.03427791]
[1754103032415,0.92758263,113850.0,113840.0,0.03128791]
[1754103032619,0.92758263,113850.0,113840.0,4.791e-05]
[1754103033251,0.93199263,113850.0,113840.0,4.791e-05]
[1754103033460,0.94049263,113850.0,113840.0,4.791e-05]
[1754103036160,5.96504991,113850.0,113840.0,4.791e-05]
[1754103036595,6.14071965,113850.0,113840.0,4.791e-05]
[1754103041063,6.14921965,113850.0,113840.0,4.791e-05]
[1754103041270,6.14480965,113850.0,113840.0,4.791e-05]
[1754103041706,5.65924965,113850.0,113840.0,0.03458791]
[1754103041926,0.89188965,113850.0,113840.0,0.03757791]
[1754103043888,1.39188965,113850.0,113840.0,0.03757791]
[1754103046342,1.09600263,113850.0,113840.0,0.03757791]
[1754103046575,1.09600263,113850.0,113840.0,0.03548791]
[1754103046801,1.09600263,113850.0,113840.0,0.03249791]
[1754103047245,0.59600263,113850.0,113840.0,0.03548791]
[1754103050615,0.59600263,113850.0,113840.0,4.791e-05]
[1754103050853,1.14041263,113850.0,113840.0,4.791e-05]
[1754103051024,6.14041263,113850.0,113840.0,4.791e-05]
[1754103051447,6.13600263,113850.0,113840.0,4.791e-05]
[1754103053125,6.13600263,113850.0,113840.0,0.03249791]
[1754103056291,6.13600263,113850.0,113840.0,4.791e-05]
[1754103056980,6.14287263,113850.0,113840.0,4.791e-05]
[1754103057220,6.12912663,113850.0,113840.0,1e-08]
[1754103057458,6.19056226,113850.0,113840.0,1e-08]
[1754103057897,6.69056226,113850.0,113840.0,1e-08]
[1754103058106,6.68956226,113850.0,113840.0,1e-08]
[1754103058537,6.69356226,113850.0,113840.0,1e-08]
[1754103058753,6.68506226,113850.0,113840.0,1e-08]
[1754103058976,6.68406226,113850.0,113840.0,1e-08]
[1754103059191,6.68706226,113850.0,113840.0,1e-08]
[1754103060022,6.70080988,113850.0,113840.0,1e-08]
[1754103060246,6.72922215,113850.0,113840.0,1e-08]
[1754103060672,6.78206215,113850.0,113840.0,1e-08]
[1754103060892,0.47571604,113820.0,113810.0,0.03409]
[1754103061124,0.17573148,113810.0,113800.0,0.04409]
[1754103061352,0.39529137,113810.0,113800.0,0.01521]
[1754103061601,0.4090421,113810.0,113800.0,0.01209]
[1754103061813,0.4090421,113810.0,113800.0,0.04306]
[1754103062031,0.43451692,113810.0,113800.0,0.04618]
[1754103062451,0.43451692,113810.0,113800.0,0.04665969]
[1754103063680,0.43451692,113810.0,113800.0,0.04865969]
[1754103063858,0.46114936,113810.0,113800.0,0.04865969]
[1754103064308,0.48756536,113810.0,113800.0,0.04865969]
[1754103064518,0.47381463,113810.0,113800.0,0.04865969]
[1754103067593,0.48756532,113810.0,113800.0,0.04865969]
[1754103071219,0.35220532,113810.0,113800.0,0.04865969]
[1754103071443,0.71722943,113810.0,113800.0,0.04865969]
[1754103072780,0.48421604,113820.0,113800.0,0.13285958]
[1754103072781,0.18421708,113820.0,113800.0,0.13285958]
[1754103072989,0.18421708,113820.0,113800.0,0.09876958]
[1754103073241,0.23465667,113820.0,113810.0,0.03409]
[1754103073450,0.5,113810.0,113800.0,0.09667958]
[1754103073676,0.5,113810.0,113800.0,0.09876958]
[1754103073900,0.5,113810.0,113800.0,0.09676958]
[1754103074752,0.23465667,113820.0,113800.0,0.09776958]
[1754103074949,0.23465667,113820.0,113800.0,0.09676958]
[1754103075391,0.23465667,113820.0,113810.0,0.03409]
[1754103075572,0.18421708,113820.0,113810.0,0.03618]
[1754103076880,0.18421708,113820.0,113810.0,0.03718]
[1754103077106,0.0085,113820.0,113810.0,0.03718]
[1754103077321,0.38655392,113830.0,113810.0,0.03718]
[1754103077537,0.38655392,113830.0,113810.0,0.03406]
[1754103077754,0.17590677,113830.0,113820.0,0.00312]
[1754103077972,0.17590677,113830.0,113820.0,0.03618]
[1754103078184,0.21596737,113830.0,113820.0,0.03618]
[1754103078627,0.26957759,113830.0,113820.0,0.03618]
[1754103080467,0.21596737,113830.0,113820.0,0.03618]
[1754103081276,0.2423693,113830.0,113820.0,0.03618]
[1754103082892,0.21596737,113830.0,113820.0,0.03618]
[1754103083129,0.04026677,113830.0,113820.0,0.03618]
[1754103083334,0.18904553,113850.0,113820.0,0.03618]
[1754103083549,0.32009322,113850.0,113830.0,0.00312]
[1754103083744,0.37467024,113850.0,113840.0,0.03306]
[1754103083948,0.37467024,113850.0,113840.0,0.03618]
[1754103084382,0.37665024,113850.0,113840.0,0.03618]
[1754103084597,0.37765024,113850.0,113840.0,0.03618]
[1754103085113,0.40339968,113850.0,113840.0,0.03618]
[1754103085329,0.26775968,113850.0,113840.0,0.03618]
[1754103085534,0.40339968,113850.0,113840.0,0.03618]
[1754103085962,0.42871259,113850.0,113840.0,0.03618]
[1754103087882,0.29307259,113850.0,113840.0,0.03618]
[1754103088092,0.42859259,113850.0,113840.0,0.03618]
[1754103088535,0.29307259,113850.0,113840.0,0.03618]
[1754103088863,0.42859259,113850.0,113840.0,0.03618]
[1754103091555,0.42851259,113850.0,113840.0,0.03618]
[1754103091778,0.29307259,113850.0,113840.0,0.03618]
[1754103092007,0.42847259,113850.0,113840.0,0.03618]
[1754103093321,0.42847259,113850.0,113840.0,0.03097]
[1754103093545,0.46088259,113850.0,113840.0,0.03097]
[1754103095367,0.37389557,113850.0,113840.0,0.03295]
[1754103095582,0.37389557,113850.0,113840.0,0.03588]
[1754103101847,0.37373557,113850.0,113840.0,0.03588]
[1754103108527,0.23849557,113850.0,113840.0,0.03588]
[1754103108887,0.37361557,113850.0,113840.0,0.03588]
[1754103110731,0.05206235,113850.0,113840.0,0.03588]
[1754103110914,0.1351279,113850.0,113840.0,0.03588]
[1754103111213,4.79e-05,113850.0,113840.0,0.03588]
[1754103113786,0.17571764,113850.0,113840.0,0.03588]
[1754103113999,0.22947486,113850.0,113840.0,0.03588]
[1754103115078,0.17569293,113840.0,113830.0,0.00293]
[1754103115294,0.17569293,113840.0,113830.0,0.03518]
[1754103115914,0.37139834,113850.0,113830.0,0.03518]
[1754103116049,0.37139834,113850.0,113830.0,0.03225]
[1754103116264,0.37139834,113850.0,113840.0,0.00293]
[1754103116467,0.37337834,113850.0,113840.0,0.00505]
[1754103116669,0.37337834,113850.0,113840.0,0.03518]
[1754103118664,0.40413241,113850.0,113840.0,0.03225]
[1754103118877,0.40413241,113850.0,113840.0,0.03013]
[1754103120705,0.17568517,113840.0,113830.0,0.03306]
[1754103120915,0.17767517,113840.0,113830.0,0.03306]
[1754103121382,0.17767517,113840.0,113830.0,0.03518]
[1754103122004,0.17767517,113840.0,113830.0,0.03718]
[1754103122183,0.17568517,113840.0,113830.0,0.03718]
[1754103122915,0.17568517,113840.0,113830.0,0.03818]
[1754103124529,0.34617761,113850.0,113830.0,0.03818]
[1754103124719,0.17568517,113840.0,113830.0,0.03818]
[1754103125266,0.34617761,113850.0,113830.0,0.03818]
[1754103126869,0.17568517,113840.0,113830.0,0.03818]
[1754103127191,0.17568517,113840.0,113830.0,0.03618]
[1754103127396,0.22985145,113840.0,113830.0,0.03518]
[1754103128271,0.17766517,113840.0,113830.0,0.03718]
[1754103128995,0.17766517,113840.0,113830.0,0.03818]
[1754103129708,0.13508,113850.0,113830.0,0.03818]
[1754103129911,0.17568517,113840.0,113830.0,0.03818]
[1754103130558,0.17568517,113840.0,113830.0,0.03718]
[1754103132960,0.17568517,113840.0,113830.0,0.03818]
[1754103134749,0.17568517,113840.0,113830.0,0.03606]
[1754103135607,0.17568517,113840.0,113830.0,0.03818]
[1754103138489,0.17568517,113840.0,113830.0,0.03606]
[1754103138695,0.18060517,113840.0,113830.0,0.003]
[1754103138949,0.23061501,113840.0,113830.0,0.003]
[1754103139149,0.22569501,113840.0,113830.0,0.03606]
[1754103139278,0.17568517,113840.0,113830.0,0.03606]
[1754103145938,0.17568517,113840.0,113830.0,0.03807]
[1754103149107,0.32795322,113850.0,113830.0,0.03807]
[1754103149320,0.32795322,113850.0,113830.0,0.00501]
[1754103149524,0.66795322,113850.0,113840.0,0.03922]
[1754103154689,0.17569522,113840.0,113830.0,0.03922]
[1754103154900,0.17569522,113840.0,113830.0,0.04123]
[1754103155902,0.17569522,113840.0,113830.0,0.04223]
[1754103157082,0.17569522,113840.0,113830.0,0.04423]
[1754103164133,0.18619522,113840.0,113830.0,0.003]
[1754103164351,0.26600341,113840.0,113830.0,0.003]
[1754103164550,0.17569522,113840.0,113830.0,0.003]
[1754103164872,0.17569522,113840.0,113830.0,0.04222]
[1754103165954,0.17569522,113840.0,113830.0,0.04423]
[1754103169533,0.17569522,113840.0,113830.0,0.04222]
[1754103169676,0.17569522,113840.0,113830.0,0.003]
[1754103169889,0.18619522,113840.0,113830.0,0.003]
[1754103170321,0.17569522,113840.0,113830.0,0.003]
[1754103170568,0.17569522,113840.0,113830.0,0.04423]
[1754103172596,0.17568517,113840.0,113830.0,0.04423]
[1754103174169,0.66871322,113850.0,113830.0,0.04423]
[1754103174415,0.66871322,113850.0,113840.0,0.00325]
[1754103174609,0.66871322,113850.0,113840.0,0.03834]
[1754103180687,0.4607392,113850.0,113840.0,0.03834]
[1754103181098,0.64519242,113850.0,113840.0,0.03834]
[1754103181928,0.6589383,113850.0,113840.0,0.03834]
[1754103182745,0.18447341,113840.0,113810.0,0.07223998]
[1754103182970,0.18447341,113840.0,113830.0,0.04022]
[1754103184255,0.18447341,113840.0,113830.0,0.04222]
[1754103185571,0.18447341,113840.0,113830.0,0.04322]
[1754103195030,0.18447341,113840.0,113830.0,0.04112]
[1754103196446,0.18447341,113840.0,113830.0,0.042074]
[1754103203584,0.18447341,113840.0,113830.0,0.039974]
[1754103207623,0.18447341,113840.0,113830.0,0.042104]
[1754103213044,0.19819941,113850.0,113830.0,0.042104]
[1754103213207,0.33319941,113850.0,113840.0,0.00309]
[1754103213408,0.19819941,113850.0,113840.0,0.03898]
[1754103214618,0.17566974,113850.0,113840.0,0.03898]
[1754103217234,0.28679929,113860.0,113840.0,0.03898]
[1754103217430,0.28679929,113860.0,113850.0,0.00309]
[1754103217851,0.28679929,113860.0,113850.0,0.03898]
[1754103218257,0.04992185,113860.0,113850.0,0.03898]
[1754103218432,0.31931289,113870.0,113850.0,0.03898]
[1754103218632,0.002,113860.0,113850.0,0.03589]
[1754103219242,0.002,113860.0,113850.0,0.03898]
[1754103219500,0.001,113860.0,113850.0,0.03898]
[1754103219920,0.3368859,113870.0,113850.0,0.03898]
[1754103220130,0.3368859,113870.0,113850.0,0.03589]
[1754103220311,0.3368859,113870.0,113860.0,0.00309]
[1754103220860,0.3368859,113870.0,113860.0,0.03685]
[1754103221083,0.3378859,113870.0,113860.0,0.03685]
[1754103221662,0.36641467,113870.0,113860.0,0.03685]